bitfinex/quotes_ETHUSD_20250210
["timestamp","ask_amount","ask_price","bid_price","bid_amount"]
[1739167749220,6.79449,2635.4,2635.3,0.06255824]
[1739167749420,3.0,2635.6,2635.2,3.33607123]
[1739167749616,3.0,2635.6,2635.3,0.06255824]
[1739167749831,6.79429,2635.6,2635.2,3.33607123]
[1739167750137,3.0,2635.5,2635.2,3.33607123]
[1739167750356,3.79429,2635.6,2635.2,3.33607123]
[1739167750521,3.0,2635.5,2635.3,0.06255824]
[1739167750847,3.79436,2635.5,2635.2,3.33607123]
[1739167751525,3.79436,2635.5,2635.3,0.06255824]
[1739167751730,3.79436,2635.5,2635.2,3.33607123]
[1739167752145,3.79436,2635.5,2635.3,0.06350353]
[1739167752333,3.79449,2635.4,2635.3,0.06350353]
[1739167753040,3.0,2635.5,2635.2,3.33607123]
[1739167753245,3.0,2635.5,2635.3,0.06350353]
[1739167753453,6.79444,2635.5,2635.3,0.06350353]
[1739167753644,6.79444,2635.5,2635.2,3.33607123]
[1739167753817,6.79444,2635.5,2635.4,0.06350353]
[1739167754012,6.79444,2635.5,2635.2,3.33607123]
[1739167754217,6.79444,2635.5,2635.3,0.06350353]
[1739167754417,6.79444,2635.5,2635.2,3.33607123]
[1739167754749,6.79444,2635.5,2635.3,0.06350353]
[1739167754953,6.79444,2635.5,2635.2,3.33607123]
[1739167754954,3.79449,2635.4,2635.1,0.75653421]
[1739167755136,3.79465,2635.3,2635.1,0.75653421]
[1739167755338,3.79465,2635.3,2634.9,4.08867123]
[1739167755339,6.79465,2635.3,2635.2,0.06350353]
[1739167755551,7.61015,2635.3,2635.2,0.06350353]
[1739167755752,3.79573,2634.6,2634.3,4.16227123]
[1739167755950,3.79573,2634.6,2634.3,3.33607123]
[1739167756143,4.6109,2634.8,2634.4,0.06236869]
[1739167756529,3.79523,2634.9,2634.4,0.06236869]
[1739167756936,3.79548,2634.8,2634.4,0.06236869]
[1739167757659,7.59056,2634.9,2634.4,0.06236869]
[1739167758273,3.79564,2634.6,2634.4,0.06236869]
[1739167758650,3.0,2634.5,2634.0,3.33607123]
[1739167759470,3.0,2634.5,2634.0,7.89493125]
[1739167759669,3.0,2634.5,2634.0,4.09854125]
[1739167760055,3.79542,2634.8,2634.3,3.33607123]
[1739167760567,6.79534,2634.9,2634.3,7.13205123]
[1739167760772,3.0,2634.7,2634.3,7.13205123]
[1739167761344,3.0,2634.7,2634.3,10.92802123]
[1739167761561,4.61064,2635.0,2634.4,3.7959]
[1739167761766,3.0,2634.9,2634.4,3.7959]
[1739167762043,3.79488,2635.2,2634.6,3.33607123]
[1739167762270,3.79502,2635.1,2634.6,3.33607123]
[1739167762570,3.0,2635.0,2634.7,0.8262]
[1739167763078,3.79488,2635.2,2634.7,0.8262]
[1739167763252,3.79453,2635.4,2634.9,3.33607123]
[1739167763440,0.8155,2635.5,2634.9,3.33607123]
[1739167763636,3.79452,2635.4,2634.9,3.33607123]
[1739167763873,3.79452,2635.4,2634.9,7.13127123]
[1739167764175,3.79426,2635.6,2634.9,7.13127123]
[1739167764176,3.79426,2635.6,2635.0,3.79505]
[1739167764360,0.8155,2635.7,2635.2,3.33607123]
[1739167764573,3.79408,2635.7,2635.2,4.16227123]
[1739167764768,6.7942,2635.6,2635.2,4.16227123]
[1739167764975,6.7942,2635.6,2635.2,0.8262]
[1739167765281,3.7945,2635.4,2635.2,0.8262]
[1739167765681,3.7945,2635.4,2635.0,0.8262]
[1739167766662,6.7942,2635.6,2635.0,4.62117]
[1739167766987,10.5885,2635.6,2635.0,0.8262]
[1739167767364,3.79436,2635.5,2635.0,0.8262]
[1739167767883,6.7942,2635.6,2635.0,4.62125]
[1739167768082,10.58853,2635.6,2635.0,4.62125]
[1739167768280,3.79435,2635.5,2635.0,0.8262]
[1739167768951,3.79435,2635.5,2635.1,0.05852369]
[1739167769953,7.58878,2635.5,2635.1,0.05852369]
[1739167770149,3.79477,2635.2,2635.1,0.05852369]
[1739167770355,3.0,2635.1,2634.6,3.33607123]
[1739167770555,3.79535,2634.8,2634.7,0.05831253]
[1739167770754,3.79508,2635.0,2634.4,0.8262]
[1739167770987,3.79522,2634.9,2634.5,0.05831253]
[1739167771483,3.79508,2635.0,2634.5,0.05831253]
[1739167771982,7.59026,2635.0,2634.5,0.05831253]
[1739167772383,3.79508,2635.0,2634.5,0.05831253]
[1739167772553,3.79508,2635.0,2634.6,3.33607123]
[1739167772956,7.59028,2635.0,2634.7,0.05869264]
[1739167773199,3.79508,2635.0,2634.7,0.05869264]
[1739167773404,3.0,2635.1,2634.7,0.05869264]
[1739167773623,6.79494,2635.1,2634.7,0.05869264]
[1739167773923,3.7951,2635.0,2634.7,0.05869264]
[1739167774118,7.59026,2635.0,2634.7,0.05869264]
[1739167774274,3.7951,2635.0,2634.7,0.05869264]
[1739167774478,6.79535,2634.8,2634.7,0.05869264]
[1739167774908,3.79583,2634.5,2634.1,0.8262]
[1739167775205,3.0,2634.4,2634.0,3.33607123]
[1739167775507,3.79608,2634.3,2634.0,3.33607123]
[1739167775707,6.79595,2634.4,2634.0,3.33607123]
[1739167776534,3.79665,2633.9,2633.8,0.8262]
[1739167776830,3.79663,2634.0,2633.7,3.33607123]
[1739167777380,3.79665,2633.9,2633.7,3.33607123]
[1739167777989,6.79642,2634.1,2633.7,3.33607123]
[1739167778204,6.7963,2634.2,2633.7,3.33607123]
[1739167779717,3.79598,2634.4,2634.0,4.14627123]
[1739167779936,3.79569,2634.6,2634.3,3.33607123]
[1739167781016,3.0,2634.5,2634.3,3.33607123]
[1739167781430,6.79581,2634.5,2634.3,3.33607123]
[1739167781652,6.79581,2634.5,2634.0,3.33607123]
[1739167781952,10.59171,2634.5,2634.0,3.33607123]
[1739167782149,3.0,2634.5,2634.0,7.13253123]
[1739167782646,3.0,2634.5,2634.1,3.79634]
[1739167783251,3.0,2634.5,2634.0,7.13253123]
[1739167783848,4.54916,2635.0,2634.3,7.13212123]
[1739167784015,4.54916,2635.0,2634.4,0.8102]
[1739167784218,4.54916,2635.0,2634.6,3.33607123]
[1739167784432,3.79509,2635.0,2634.6,3.33607123]
[1739167784657,3.0,2634.9,2634.7,0.05996852]
[1739167785225,3.79535,2634.8,2634.7,0.05996852]
[1739167785633,6.79521,2634.9,2634.3,3.33607123]
[1739167785928,3.7959,2634.5,2634.4,0.05996852]
[1739167786625,3.79564,2634.6,2634.4,0.05996852]
[1739167786626,7.59139,2634.6,2634.4,0.05996852]
[1739167786850,3.79564,2634.6,2634.4,0.05996852]
[1739167787014,7.59141,2634.6,2634.4,0.05996852]
[1739167787212,3.79542,2634.8,2634.4,0.05996852]
[1739167787721,3.79578,2634.5,2634.4,0.05996852]
[1739167790334,3.79573,2634.6,2634.4,0.05996852]
[1739167790535,3.79536,2634.8,2634.4,0.05996852]
[1739167790846,3.0,2634.9,2634.6,3.33607123]
[1739167791046,3.0,2634.9,2634.7,0.06003612]
[1739167791264,3.79535,2634.8,2634.7,0.06003612]
[1739167791627,3.79549,2634.7,2634.6,3.33607123]
[1739167791831,3.79549,2634.7,2634.6,3.39610735]
[1739167792529,3.79535,2634.8,2634.6,3.39610735]
[1739167793057,7.5908,2634.8,2634.6,3.39610735]
[1739167793259,7.59082,2634.8,2634.6,3.39610735]
[1739167793464,6.79522,2634.9,2634.7,0.8061]
[1739167793631,3.79522,2634.9,2634.7,0.8061]
[1739167793833,3.79522,2634.9,2634.8,0.06003612]
[1739167794027,3.79535,2634.8,2634.7,0.8061]
[1739167794231,3.79535,2634.8,2634.7,0.86613612]
[1739167795364,3.79514,2635.0,2634.7,0.86613612]
[1739167795870,3.79525,2634.9,2634.7,0.86613612]
[1739167796233,3.79535,2634.8,2634.7,0.86613612]
[1739167799071,3.79535,2634.8,2634.7,0.06003612]
[1739167800657,3.79512,2635.0,2634.7,0.06003612]
[1739167800841,3.79523,2634.9,2634.7,0.06003612]
[1739167801772,3.79535,2634.8,2634.7,0.06003612]
[1739167803684,3.79512,2635.0,2634.7,0.06003612]
[1739167803886,6.79535,2634.8,2634.7,0.06003612]
[1739167804258,3.79679,2633.8,2633.7,3.33607123]
[1739167804580,3.7966,2634.0,2633.7,3.39139669]
[1739167804903,3.79679,2633.8,2633.7,3.39139669]
[1739167805247,3.79679,2633.8,2633.7,0.05532546]
[1739167805479,3.79711,2633.6,2633.4,3.33607123]
[1739167805976,7.59372,2633.8,2633.4,3.33607123]
[1739167806193,3.79679,2633.8,2633.4,3.33607123]
[1739167806560,3.0,2633.9,2633.7,3.33607123]
[1739167806774,3.79651,2634.0,2633.7,3.33607123]
[1739167807681,3.79679,2633.8,2633.7,3.33607123]
[1739167808187,3.0,2634.1,2633.7,3.33607123]
[1739167808391,3.79579,2634.5,2634.1,0.8072]
[1739167808587,3.79579,2634.5,2634.3,3.33607123]
[1739167809012,3.79593,2634.4,2634.3,3.33607123]
[1739167809217,3.79636,2634.1,2634.0,3.33607123]
[1739167809510,0.7502,2634.3,2633.7,3.33607123]
[1739167809713,3.79634,2634.2,2634.0,3.33607123]
[1739167809870,6.7969,2633.8,2633.4,3.33607123]
[1739167810054,3.79717,2633.6,2633.4,3.33607123]
[1739167810257,6.79722,2633.5,2633.4,3.33607123]
[1739167810478,6.79722,2633.5,2633.1,3.33607123]
[1739167810479,3.79743,2633.4,2633.1,3.33607123]
[1739167810996,3.79743,2633.4,2633.2,0.05339054]
[1739167810997,3.79751,2633.3,2633.2,0.05339054]
[1739167811310,6.79751,2633.3,2633.2,0.05339054]
[1739167811792,3.79792,2633.1,2632.8,3.33607123]
[1739167811992,3.79797,2633.0,2632.8,3.33607123]
[1739167812206,3.79809,2632.9,2632.8,3.33607123]
[1739167812892,3.79797,2633.0,2632.8,3.33607123]
[1739167813096,3.7977,2633.2,2632.8,3.33607123]
[1739167813593,3.0,2633.3,2632.8,3.33607123]
[1739167813893,6.79756,2633.3,2633.1,3.33607123]
[1739167814056,3.0,2633.3,2633.1,3.33607123]
[1739167814463,6.79751,2633.3,2633.2,0.0527424]
[1739167814662,3.79808,2633.0,2632.8,3.33607123]
[1739167814873,3.79809,2632.9,2632.8,3.33607123]
[1739167815296,3.79808,2633.0,2632.8,3.33607123]
[1739167816665,0.7502,2633.5,2632.8,3.33607123]
[1739167816970,3.79693,2633.8,2633.4,3.33607123]
[1739167817358,3.79696,2633.7,2633.4,3.33607123]
[1739167817696,3.79693,2633.8,2633.4,3.33607123]
[1739167818161,0.7502,2634.1,2633.4,3.33607123]
[1739167818362,6.79657,2634.0,2633.4,7.13344123]
[1739167818611,3.0,2633.8,2633.4,3.33607123]
[1739167818925,4.5466,2634.1,2633.4,3.33607123]
[1739167819211,3.79665,2633.9,2633.7,3.33607123]
[1739167819563,3.79639,2634.1,2633.7,3.33607123]
[1739167819795,3.7502,2634.4,2633.7,3.33607123]
[1739167819996,3.0,2634.0,2633.7,3.33607123]
[1739167820179,3.79614,2634.3,2633.7,3.33607123]
[1739167820583,3.0,2634.0,2633.7,3.33607123]
[1739167821296,3.79582,2634.5,2633.7,4.15807123]
[1739167821479,3.79582,2634.5,2634.2,3.33607123]
[1739167821802,3.79573,2634.6,2634.2,3.33607123]
[1739167822304,3.0,2634.4,2634.2,3.33607123]
[1739167822481,3.0,2634.4,2633.9,3.33607123]
[1739167822691,3.79689,2633.8,2633.6,3.33607123]
[1739167823073,3.79689,2633.8,2633.4,0.7915]
[1739167823594,6.79697,2633.7,2633.3,3.33607123]
[1739167823767,3.0,2633.7,2633.3,3.33607123]
[1739167824297,6.79697,2633.7,2633.3,3.33607123]
[1739167824593,3.79723,2633.5,2633.0,3.33607123]
[1739167825208,3.79768,2633.2,2632.7,3.33607123]
[1739167825379,7.59487,2633.4,2632.7,3.33607123]
[1739167825576,3.79739,2633.4,2632.7,7.13440123]
[1739167825789,3.79752,2633.3,2632.7,7.13440123]
[1739167826195,3.79769,2633.2,2632.7,3.33607123]
[1739167826406,3.79739,2633.4,2632.7,7.13444123]
[1739167826606,3.79739,2633.4,2633.0,3.33607123]
[1739167828190,3.79819,2632.9,2632.4,3.33607123]
[1739167828714,3.8315,2633.0,2632.4,7.13486123]
[1739167828909,0.8315,2633.3,2632.7,3.33607123]
[1739167829280,6.79792,2633.1,2632.8,0.05011571]
[1739167829488,6.79792,2633.1,2632.7,3.33607123]
[1739167829679,3.0,2633.1,2632.8,0.05011571]
[1739167830038,6.79781,2633.1,2632.9,0.05033511]
[1739167830244,6.79781,2633.1,2632.7,3.33607123]
[1739167830442,6.79781,2633.1,2632.8,0.05033511]
[1739167830647,3.0,2633.1,2632.7,3.33607123]
[1739167830809,3.0,2633.1,2632.8,0.05030979]
[1739167831008,3.0,2633.1,2632.7,3.33607123]
[1739167831213,3.0,2633.1,2632.8,0.05030979]
[1739167831398,3.0,2633.1,2632.7,3.33607123]
[1739167831740,3.0,2633.1,2632.8,0.05030979]
[1739167831948,0.8315,2633.3,2632.8,0.05030979]
[1739167832151,3.79725,2633.5,2633.0,3.33607123]
[1739167832293,7.59459,2633.5,2633.0,3.33607123]
[1739167832516,3.79738,2633.4,2633.1,0.09195976]
[1739167832714,3.79752,2633.3,2633.1,0.09195976]
[1739167833567,3.0,2633.4,2633.1,0.09195976]
[1739167834065,6.79754,2633.3,2633.2,0.09195976]
[1739167834367,6.79754,2633.3,2633.0,3.33607123]
[1739167834536,6.79754,2633.3,2633.2,0.09195976]
[1739167835032,6.79754,2633.3,2633.0,3.33607123]
[1739167835234,6.79754,2633.3,2633.1,0.09195976]
[1739167835768,3.0,2633.3,2633.1,0.09195976]
[1739167835919,3.79725,2633.5,2633.1,0.09195976]
[1739167836122,7.59457,2633.5,2633.1,0.09195976]
[1739167836321,3.0,2633.4,2633.1,0.09195976]
[1739167836745,6.79749,2633.4,2633.1,0.09195976]
[1739167837052,3.0,2633.4,2633.1,0.09195976]
[1739167837753,6.79739,2633.4,2633.1,0.09195976]
[1739167837951,0.8315,2633.6,2633.1,0.09195976]
[1739167838153,4.6286,2633.6,2633.1,3.88974976]
[1739167838337,4.6286,2633.6,2633.1,0.09195976]
[1739167839149,3.79726,2633.5,2633.1,0.09195976]
[1739167841082,3.0,2633.4,2633.1,0.09195976]
[1739167841583,4.62021,2634.1,2633.4,3.79726]
[1739167841783,4.62021,2634.1,2633.8,3.33607123]
[1739167842082,3.79659,2634.0,2633.9,0.09168132]
[1739167842411,3.0,2634.0,2633.9,0.09168132]
[1739167843259,6.7965,2634.0,2633.9,0.09168132]
[1739167846783,3.0,2634.0,2633.9,0.09168132]
[1739167847190,6.7965,2634.0,2633.9,0.09168132]
[1739167848208,7.6203,2634.0,2633.9,0.09168132]
[1739167848378,3.79694,2633.7,2633.5,3.33607123]
[1739167848854,6.79694,2633.7,2633.6,0.09136076]
[1739167848986,7.62074,2633.7,2633.6,0.09136076]
[1739167849175,3.79767,2633.2,2632.9,3.33607123]
[1739167849519,3.79767,2633.2,2633.0,0.0913945]
[1739167850132,3.0,2633.3,2633.0,0.0913945]
[1739167850324,3.79766,2633.2,2633.0,0.0913945]
[1739167850520,3.79766,2633.2,2632.9,3.33607123]
[1739167850823,6.79766,2633.2,2633.1,0.08858516]
[1739167851122,6.79766,2633.2,2633.0,0.08858516]
[1739167851323,6.79766,2633.2,2632.9,3.33607123]
[1739167851528,6.79766,2633.2,2633.1,0.08858516]
[1739167851696,6.79766,2633.2,2633.0,0.08860203]
[1739167851882,6.79766,2633.2,2632.9,3.33607123]
[1739167852221,6.79766,2633.2,2633.1,0.08860203]
[1739167852520,6.79766,2633.2,2633.0,0.08873704]
[1739167852685,3.79819,2632.9,2632.6,3.33607123]
[1739167853011,3.79827,2632.8,2632.3,3.33607123]
[1739167853323,3.79819,2632.9,2632.3,3.33607123]
[1739167853810,3.8157,2633.2,2632.6,3.33607123]
[1739167853811,3.79785,2633.1,2632.6,3.33607123]
[1739167854107,4.61345,2633.2,2632.2,1.57597951]
[1739167854108,4.61339,2633.2,2632.9,3.33607123]
[1739167854307,3.79769,2633.2,2632.9,3.33607123]
[1739167854607,6.79754,2633.3,2632.9,3.33607123]
[1739167854777,4.09184,2633.8,2632.9,3.33607123]
[1739167854778,0.8157,2633.7,2632.9,3.33607123]
[1739167854978,3.79745,2633.4,2632.9,3.33607123]
[1739167855277,3.79745,2633.4,2632.9,7.13414123]
[1739167857506,3.79696,2633.7,2633.3,0.8229]
[1739167858013,6.79709,2633.6,2633.3,0.8229]
[1739167858305,3.79727,2633.5,2633.2,3.33607123]
[1739167858513,3.79775,2633.2,2632.9,3.33607123]
[1739167858701,3.7978,2633.1,2632.9,3.33607123]
[1739167859110,6.7978,2633.1,2633.0,0.08882143]
[1739167859309,6.7978,2633.1,2632.6,3.33607123]
[1739167859310,3.79827,2632.8,2632.6,3.33607123]
[1739167860525,3.0,2632.9,2632.6,3.33607123]
[1739167860721,3.79823,2632.8,2632.6,3.33607123]
[1739167861331,3.79873,2632.5,2632.3,3.33607123]
[1739167861625,6.79849,2632.7,2632.3,3.33607123]
[1739167862001,3.0,2632.8,2632.3,3.33607123]
[1739167862194,4.6135,2633.1,2632.4,0.8229]
[1739167862411,3.0,2633.0,2632.6,3.33607123]
[1739167862610,4.6135,2633.1,2632.6,3.33607123]
[1739167863223,4.6135,2633.1,2632.3,3.33607123]
[1739167863224,3.79835,2632.8,2632.3,3.33607123]
[1739167863601,3.79818,2632.9,2632.3,3.33607123]
[1739167863933,3.79827,2632.8,2632.3,3.33607123]
[1739167864139,3.79818,2632.9,2632.6,3.33607123]
[1739167864296,4.61353,2633.1,2632.6,3.33607123]
[1739167864497,3.79783,2633.1,2632.6,3.33607123]
[1739167864700,3.79783,2633.1,2632.7,0.8229]
[1739167865557,3.79769,2633.2,2632.9,3.33607123]
[1739167865757,0.8157,2633.4,2632.9,3.33607123]
[1739167866328,3.7977,2633.2,2632.9,3.33607123]
[1739167867297,3.7977,2633.2,2632.6,0.75694058]
[1739167867298,3.79804,2633.0,2632.6,3.33607123]
[1739167867732,3.79776,2633.2,2632.6,7.13459123]
[1739167867947,3.79787,2633.1,2632.6,3.33607123]
[1739167868836,3.79776,2633.2,2632.9,4.15997123]
[1739167869020,3.79739,2633.4,2632.9,4.15997123]
[1739167869226,3.79764,2633.3,2632.9,4.15997123]
[1739167869614,3.79739,2633.4,2632.9,4.15997123]
[1739167870326,7.59488,2633.4,2632.9,4.15997123]
[1739167870643,3.8235,2633.6,2632.9,4.15997123]
[1739167870941,7.59466,2633.5,2632.9,4.15997123]
[1739167871139,3.79701,2633.7,2633.2,3.33607123]
[1739167871442,3.0,2633.6,2633.2,3.33607123]
[1739167871740,3.79728,2633.5,2633.2,3.33607123]
[1739167871941,3.79738,2633.4,2633.2,3.33607123]
[1739167872442,3.79699,2633.7,2633.2,3.33607123]
[1739167872641,3.79642,2634.1,2633.6,3.79705]
[1739167872818,7.59288,2634.1,2633.6,0.8239]
[1739167873031,3.7967,2633.9,2633.6,0.8239]
[1739167873963,3.7967,2633.9,2633.7,0.08900707]
[1739167874742,6.79643,2634.1,2633.5,3.33607123]
[1739167874948,3.79662,2634.0,2633.8,0.08872863]
[1739167875146,3.79662,2634.0,2633.5,3.33607123]
[1739167875345,6.79643,2634.1,2633.9,0.08872863]
[1739167875536,3.79674,2633.9,2633.5,3.33607123]
[1739167876048,6.79643,2634.1,2633.5,3.33607123]
[1739167876270,3.79651,2634.0,2633.5,3.33607123]
[1739167876567,3.79616,2634.3,2633.8,4.15997123]
[1739167876767,3.79638,2634.1,2633.8,4.15997123]
[1739167879569,6.79632,2634.2,2633.8,4.15997123]
[1739167880963,3.0,2634.2,2633.8,7.95672123]
[1739167882485,3.79581,2634.5,2634.1,3.33607123]
[1739167882892,3.79596,2634.4,2634.1,3.33607123]
[1739167883059,3.79593,2634.4,2634.1,3.33607123]
[1739167883555,3.0,2634.4,2634.1,3.33607123]
[1739167884240,6.79595,2634.4,2634.1,3.33607123]
[1739167884646,3.0,2634.4,2634.1,3.33607123]
[1739167885379,6.79595,2634.4,2634.1,3.33607123]
[1739167887456,3.0,2634.4,2634.1,3.33607123]
[1739167887654,4.60958,2634.9,2634.1,3.33607123]
[1739167887855,4.60958,2634.9,2634.4,4.14717123]
[1739167888067,4.0325451,2635.0,2634.4,7.94296123]
[1739167888265,3.0,2634.8,2634.4,4.14717123]
[1739167888695,3.7955,2634.7,2634.4,4.14717123]
[1739167888903,7.59107,2634.7,2634.5,0.08680364]
[1739167889047,3.79564,2634.6,2634.5,0.08680364]
[1739167890171,3.0,2634.8,2634.5,0.08680364]
[1739167890561,3.0,2634.8,2634.6,0.7941]
[1739167890879,3.0,2634.8,2634.7,0.08686266]
[1739167891259,1.0325451,2635.0,2634.7,3.42293389]
[1739167891458,4.0325451,2635.0,2634.7,3.42293389]
[1739167892570,1.0325451,2635.0,2634.7,3.42293389]
[1739167892750,4.0325451,2635.0,2634.7,3.42293389]
[1739167893191,1.0325451,2635.0,2634.7,4.1962734]
[1739167894087,1.0325451,2635.0,2634.7,7.9916734]
[1739167894651,1.0325451,2635.0,2634.9,3.79521]
[1739167894865,1.0325451,2635.0,2634.9,4.67591131]
[1739167896155,1.0325451,2635.0,2634.9,0.08660131]
[1739167896361,7.8276051,2635.0,2634.9,0.08660131]
[1739167896679,7.8276051,2635.0,2634.9,0.0823405]
[1739167896876,4.0325451,2635.0,2634.7,3.33607123]
[1739167897186,4.0325451,2635.0,2634.9,0.08247516]
[1739167897392,1.0325451,2635.0,2634.7,3.33607123]
[1739167897594,1.0325451,2635.0,2634.9,0.08247516]
[1739167897786,1.0325451,2635.0,2634.8,3.79534]
[1739167897994,1.0325451,2635.0,2634.9,0.85618357]
[1739167898962,1.0325451,2635.0,2634.9,4.65139357]
[1739167899411,1.0325451,2635.0,2634.9,0.85618357]
[1739167902478,1.0325451,2635.0,2634.9,4.65139357]
[1739167902811,1.0325451,2635.0,2634.9,0.85618357]
[1739167903464,1.0325451,2635.0,2634.9,4.65139357]
[1739167903664,1.0325451,2635.0,2634.9,0.85618357]
[1739167905203,1.0325451,2635.0,2634.9,4.65139357]
[1739167905697,1.0325451,2635.0,2634.9,0.85618357]
[1739167905877,1.0325451,2635.0,2634.9,0.08248357]
[1739167906073,1.0325451,2635.0,2634.7,3.33607123]
[1739167906261,1.0325451,2635.0,2634.9,0.08219745]
[1739167906465,1.0325451,2635.0,2634.7,3.33607123]
[1739167906664,1.0325451,2635.0,2634.8,0.08219745]
[1739167906969,1.0325451,2635.0,2634.8,3.79527]
[1739167907271,1.0325451,2635.0,2634.9,0.08219745]
[1739167908199,1.0325451,2635.0,2634.7,11.67226022]
[1739167908384,1.0325451,2635.0,2634.9,0.08230685]
[1739167908589,1.0325451,2635.0,2634.9,0.7737]
[1739167908785,1.0325451,2635.0,2634.9,0.85600685]
[1739167910502,1.0325451,2635.0,2634.9,4.65121685]
[1739167910707,3.0,2635.4,2634.9,4.65121685]
[1739167911009,3.0,2635.4,2635.0,3.33607123]
[1739167911557,6.79477,2635.2,2635.1,0.0822227]
[1739167911668,3.79544,2634.8,2634.3,0.7739]
[1739167911873,0.7733,2634.7,2634.4,0.07624688]
[1739167912106,3.79578,2634.5,2634.4,0.07624688]
[1739167912427,3.79611,2634.3,2633.8,3.33607123]
[1739167912723,6.79583,2634.5,2634.4,0.07624688]
[1739167913036,3.0,2634.5,2633.9,3.87286688]
[1739167913234,0.7733,2634.7,2634.3,3.79595]
[1739167913525,3.79526,2634.9,2634.4,3.33607123]
[1739167913672,3.79547,2634.8,2634.2,4.57002]
[1739167913874,3.79547,2634.8,2634.4,0.07624688]
[1739167914074,3.79566,2634.6,2634.5,0.07624688]
[1739167914303,3.79566,2634.6,2634.1,3.33607123]
[1739167914606,0.7733,2635.0,2634.5,0.07624688]
[1739167914803,6.79544,2634.8,2634.1,7.13241123]
[1739167914980,6.79549,2634.7,2634.6,0.07624688]
[1739167915337,4.56879,2634.7,2634.6,0.07624688]
[1739167915505,3.0,2634.8,2634.2,3.79609]
[1739167916012,6.79546,2634.8,2634.2,3.79609]
[1739167916206,0.7733,2634.9,2634.3,0.07624688]
[1739167916405,3.0,2634.8,2634.3,3.87222688]
[1739167916604,0.7733,2634.9,2634.4,3.79592]
[1739167916819,0.7733,2634.9,2634.5,0.7739]
[1739167917321,4.56853,2634.9,2634.6,0.07624688]
[1739167918627,0.7733,2634.9,2634.6,0.07624688]
[1739167919319,3.7733,2634.9,2634.6,0.07624688]
[1739167920334,3.79493,2635.1,2634.6,0.07624688]
[1739167920525,3.0,2635.0,2634.6,0.07624688]
[1739167920725,4.5681,2635.2,2634.6,0.07624688]
[1739167920900,8.36298,2635.2,2634.6,3.87186688]
[1739167921103,3.79466,2635.3,2634.7,7.13146123]
[1739167921297,4.56783,2635.4,2634.8,3.87190467]
[1739167921503,3.79465,2635.3,2634.8,3.87190467]
[1739167921842,4.56783,2635.4,2634.8,3.87190467]
[1739167922049,3.0,2635.3,2634.8,3.87190467]
[1739167922553,3.0,2635.3,2634.9,0.7739]
[1739167922696,4.5683,2635.1,2634.4,7.90589123]
[1739167923008,4.5683,2635.1,2634.5,3.79577]
[1739167923197,3.79507,2635.0,2634.5,0.07657467]
[1739167923397,3.7954,2634.8,2634.5,0.07657467]
[1739167924044,3.79507,2635.0,2634.3,4.54474741]
[1739167924248,3.79526,2634.9,2634.6,0.07675956]
[1739167924554,0.7733,2635.1,2634.7,0.07675956]
[1739167924751,3.7733,2634.8,2634.0,0.7739]
[1739167925035,0.7733,2634.3,2634.1,0.07675956]
[1739167925208,4.56938,2634.3,2634.1,0.07675956]
[1739167925395,4.56938,2634.3,2633.7,0.7739]
[1739167925597,4.56938,2634.3,2634.2,0.07675956]
[1739167926029,3.79672,2633.9,2633.4,0.7739]
[1739167926354,0.7733,2633.8,2633.3,0.76189461]
[1739167926657,0.7733,2633.8,2633.4,3.79736]
[1739167926831,0.7733,2633.8,2633.4,0.07675956]
[1739167928048,0.7733,2633.8,2633.4,3.87411956]
[1739167928254,4.57011,2633.8,2633.4,0.07675956]
[1739167928559,4.57011,2633.8,2633.2,7.8946896]
[1739167928723,4.57011,2633.8,2633.3,0.07741543]
[1739167928925,3.79697,2633.7,2633.2,4.0971296]
[1739167929153,4.57011,2633.8,2633.3,0.07744907]
[1739167929355,4.57011,2633.8,2633.2,7.8947696]
[1739167929552,0.7733,2633.8,2633.2,7.8947696]
[1739167929757,0.7733,2633.8,2633.3,3.87494907]
[1739167930401,3.79724,2633.5,2633.3,0.07744907]
[1739167931052,6.79722,2633.5,2633.4,0.07744907]
[1739167931454,3.79741,2633.4,2632.9,3.33607123]
[1739167931622,3.0,2633.5,2632.9,7.9039842]
[1739167931827,3.0,2633.5,2633.0,0.07744907]
[1739167932050,6.79723,2633.5,2633.0,0.07744907]
[1739167932247,4.55149,2633.4,2633.0,0.07744907]
[1739167932558,3.79755,2633.3,2633.0,0.07744907]
[1739167932735,4.55149,2633.4,2633.0,0.07744907]
[1739167932937,3.79753,2633.3,2633.0,0.07744907]
[1739167933136,4.55149,2633.4,2633.0,0.07744907]
[1739167933441,6.7978,2633.1,2633.0,0.07744907]
[1739167933832,3.0,2633.1,2632.6,3.33607123]
[1739167934051,3.0,2633.1,2633.0,0.07744907]
[1739167934248,6.7978,2633.1,2633.0,0.07744907]
[1739167934469,6.7978,2633.1,2632.6,3.33607123]
[1739167934673,3.0,2633.1,2633.0,0.07744907]
[1739167934835,6.7976,2633.3,2632.9,3.33607123]
[1739167935035,6.7976,2633.3,2633.0,0.07744907]
[1739167935682,10.59522,2633.3,2633.0,0.07744907]
[1739167936187,3.79768,2633.2,2633.0,0.07744907]
[1739167936341,3.79766,2633.2,2633.0,0.07744907]
[1739167936543,3.79766,2633.2,2632.7,3.79836]
[1739167936742,3.79817,2632.9,2632.8,0.07937521]
[1739167937042,3.79839,2632.7,2632.3,3.33607123]
[1739167938137,0.7541,2632.9,2632.3,3.33607123]
[1739167938340,3.79877,2632.5,2632.1,0.005]
[1739167938742,7.59756,2632.5,2632.1,0.005]
[1739167938940,3.79877,2632.5,2632.1,0.005]
[1739167939346,3.7989,2632.4,2632.1,0.005]
[1739167940068,3.79906,2632.3,2632.1,0.005]
[1739167940270,3.7991,2632.2,2632.1,0.005]
[1739167940459,6.7991,2632.2,2632.1,0.005]
[1739167940779,7.5532,2632.2,2632.1,0.005]
[1739167941637,0.7541,2632.2,2632.1,0.005]
[1739167941837,4.62748,2632.5,2632.1,3.34107123]
[1739167942034,3.0,2632.4,2632.1,3.34107123]
[1739167942452,3.0,2632.4,2632.1,0.005]
[1739167942657,3.799,2632.3,2632.1,0.005]
[1739167942981,3.7991,2632.2,2632.1,0.005]